bitfinex-derivatives/quotes_ETHF0:USTF0_20250904
["timestamp","ask_amount","ask_price","bid_price","bid_amount"]
[1756995126282,3.2078,4345.3,4344.6,0.275]
[1756995126488,3.2078,4344.8,4344.7,1.4228]
[1756995126681,3.2078,4344.8,4344.6,0.275]
[1756995126682,3.2078,4345.3,4345.1,1.4228]
[1756995126883,3.2078,4345.3,4345.2,1.6978]
[1756995127087,3.2078,4345.8,4345.2,1.6978]
[1756995127284,3.2078,4345.8,4345.5,0.6238]
[1756995127786,3.2078,4345.8,4345.6,1.4228]
[1756995127991,3.2078,4345.8,4345.5,0.6238]
[1756995127992,3.2078,4345.8,4345.7,1.6978]
[1756995128483,3.2078,4345.8,4345.0,0.6238]
[1756995128683,3.2078,4345.8,4345.1,1.6978]
[1756995128884,3.2078,4345.8,4345.1,1.4228]
[1756995129084,0.0525,4346.8,4345.0,0.6238]
[1756995129085,1.21419685,4348.2,4346.6,1.4228]
[1756995129285,0.4002,4348.4,4348.1,4.10834239]
[1756995129794,3.2078,4348.5,4348.2,1.4228]
[1756995129986,3.2078,4348.5,4348.1,4.10834239]
[1756995130291,0.4002,4348.4,4348.1,4.10834239]
[1756995131393,3.2078,4348.5,4348.4,1.4228]
[1756995131784,0.17,4348.9,4348.6,1.4228]
[1756995131989,0.17,4348.9,4348.8,4.10834239]
[1756995132190,0.573,4348.9,4348.4,0.275]
[1756995132490,0.17,4348.9,4348.8,1.5593]
[1756995132696,0.17,4348.9,4348.5,4.10834239]
[1756995132890,0.17,4348.9,4348.3,3.2078]
[1756995133199,0.17,4348.9,4348.4,5.66764239]
[1756995133392,0.17,4348.9,4348.4,4.10834239]
[1756995133586,0.17,4348.9,4348.8,4.10834239]
[1756995133784,0.17,4348.9,4348.4,4.10834239]
[1756995133984,0.22996,4348.8,4347.9,0.275]
[1756995134191,3.2078,4348.3,4347.5,4.10834239]
[1756995134395,0.678,4348.2,4347.0,4.73214239]
[1756995134594,0.678,4348.2,4346.8,3.2078]
[1756995134595,0.403,4348.1,4346.8,3.2078]
[1756995134890,0.403,4347.7,4346.6,4.38334239]
[1756995135191,0.275,4347.6,4346.6,0.275]
[1756995135399,0.403,4347.5,4346.6,0.275]
[1756995135691,3.2078,4347.3,4346.4,0.275]
[1756995135886,0.275,4347.2,4346.4,0.275]
[1756995136082,3.2078,4347.3,4346.7,4.10834239]
[1756995136293,3.2078,4347.3,4346.4,0.8936]
[1756995136294,3.6108,4348.3,4347.3,1.5593]
[1756995136490,3.6108,4348.3,4347.4,0.275]
[1756995136684,3.6108,4348.3,4346.4,0.8936]
[1756995136685,0.403,4347.7,4346.4,0.8936]
[1756995136891,0.275,4347.6,4346.7,3.2078]
[1756995137086,0.403,4347.7,4346.8,0.275]
[1756995137591,0.275,4347.6,4346.8,0.275]
[1756995137794,0.275,4347.6,4346.7,0.275]
[1756995138087,3.2078,4347.3,4346.5,1.5593]
[1756995138294,3.611,4347.3,4346.5,0.275]
[1756995138490,0.275,4347.2,4346.5,1.8343]
[1756995138694,3.2078,4347.3,4346.6,4.10834239]
[1756995138893,0.275,4348.2,4347.2,3.2078]
[1756995139296,3.2078,4348.3,4347.3,4.10834239]
[1756995139486,3.2078,4348.3,4347.4,1.5593]
[1756995139687,3.2078,4348.3,4347.6,0.6186]
[1756995139890,3.2078,4348.3,4347.7,1.5593]
[1756995140888,0.4032,4348.2,4347.4,0.275]
[1756995141090,3.2078,4348.3,4347.4,0.275]
[1756995141091,3.4828,4348.3,4347.5,1.5593]
[1756995141398,3.2078,4348.3,4347.7,1.5593]
[1756995141691,3.2078,4348.6,4347.7,1.5593]
[1756995141897,0.275,4348.5,4347.7,1.5593]
[1756995142096,0.275,4348.8,4347.8,1.5593]
[1756995142295,0.4032,4348.7,4347.2,1.5593]
[1756995142594,3.611,4348.2,4347.3,0.275]
[1756995142794,3.886,4348.2,4347.3,0.275]
[1756995142995,3.2078,4348.2,4347.4,3.2078]
[1756995143191,3.2078,4348.2,4347.7,1.5593]
[1756995143391,3.2078,4348.2,4347.8,0.275]
[1756995143591,3.2078,4348.2,4347.9,1.5593]
[1756995143788,3.3778,4348.9,4347.9,1.5593]
[1756995143992,3.3778,4348.9,4348.0,0.6186]
[1756995144193,3.6528,4348.9,4348.0,0.6186]
[1756995144395,3.6528,4348.9,4347.9,1.5593]
[1756995144590,0.22997,4348.8,4347.4,3.2078]
[1756995144895,3.2078,4348.4,4347.4,3.2078]
[1756995145195,3.2078,4348.4,4347.6,1.5593]
[1756995145390,0.17,4348.9,4348.0,2.1779]
[1756995145590,0.17,4348.9,4348.1,1.5593]
[1756995145794,0.17,4348.9,4348.6,1.5593]
[1756995146000,0.17,4348.9,4348.8,1.5593]
[1756995146494,3.2078,4351.3,4350.1,1.5593]
[1756995146694,0.5732,4351.2,4350.1,1.5593]
[1756995147000,0.8482,4351.2,4350.1,1.5593]
[1756995147594,3.2078,4350.8,4350.1,1.5593]
[1756995148788,0.5732,4350.7,4350.0,3.2078]
[1756995148989,0.8482,4350.7,4349.6,0.275]
[1756995149194,3.2078,4350.3,4349.1,0.275]
[1756995149394,3.4828,4350.3,4349.1,0.275]
[1756995149895,3.2078,4350.3,4349.2,1.5593]
[1756995150098,0.5732,4349.7,4348.8,3.2078]
[1756995150293,0.5732,4349.7,4348.6,1.5593]
[1756995150294,0.274,4349.6,4348.6,1.5593]
[1756995150694,0.274,4349.5,4348.6,1.5593]
[1756995150895,3.2078,4349.3,4348.4,0.274]
[1756995151197,3.2078,4349.3,4348.5,2.1779]
[1756995151595,3.4818,4349.9,4348.6,1.5593]
[1756995151997,3.2078,4349.4,4348.6,1.5593]
[1756995152195,0.274,4349.3,4348.6,1.5593]
[1756995152900,3.2078,4349.4,4349.0,0.6186]
[1756995153205,3.2078,4350.4,4349.1,1.8333]
[1756995153691,0.274,4350.3,4349.1,1.5593]
[1756995153897,0.5732,4349.6,4348.5,3.8264]
[1756995154102,0.274,4349.5,4348.5,3.8264]
[1756995154500,0.274,4349.4,4348.6,1.5593]
[1756995154996,3.2078,4349.2,4348.0,2.1779]
[1756995155304,3.2078,4349.2,4348.1,1.5593]
[1756995155802,3.2078,4349.2,4348.0,0.8926]
[1756995155803,3.2078,4349.7,4348.8,1.5593]
[1756995156002,3.2078,4349.7,4349.5,0.6186]
[1756995156204,3.2078,4349.7,4349.6,1.5593]
[1756995156796,3.2078,4350.4,4349.6,1.5593]
[1756995157004,0.274,4350.3,4349.6,1.5593]
[1756995157396,3.2078,4349.9,4349.0,2.1779]
[1756995157792,3.2078,4349.9,4349.0,2.4519]
[1756995157995,3.2078,4349.9,4349.0,2.1779]
[1756995158194,3.781,4349.9,4349.0,1.5593]
[1756995158401,3.2078,4349.4,4349.0,1.5593]
[1756995158795,3.2078,4349.4,4348.6,0.274]
[1756995159205,3.2078,4349.4,4348.4,0.274]
[1756995159400,0.5732,4350.2,4348.8,1.5593]
[1756995159601,3.2078,4349.9,4349.1,1.5593]
[1756995160604,3.4818,4349.9,4349.1,1.5593]
[1756995160802,3.2078,4349.9,4349.3,1.5593]
[1756995161001,3.2078,4349.9,4349.0,0.6186]
[1756995161002,3.2078,4350.4,4349.7,3.2078]
[1756995161304,3.2078,4350.4,4349.8,1.5593]
[1756995161501,3.2078,4350.9,4349.8,1.8333]
[1756995161697,3.2078,4350.9,4350.3,1.5593]
[1756995161901,3.2078,4350.9,4350.3,1.8333]
[1756995163008,3.2078,4351.4,4350.3,1.8333]
[1756995163410,3.2078,4351.4,4350.3,1.5593]
[1756995163605,3.2078,4350.9,4350.4,0.274]
[1756995164007,3.2078,4350.9,4350.3,0.274]
[1756995164208,3.2078,4350.9,4350.2,0.274]
[1756995164906,3.2078,4350.9,4350.1,1.5323]
[1756995165109,3.2078,4350.9,4350.1,1.8063]
[1756995165309,3.2078,4350.9,4350.1,1.5323]
[1756995165705,3.4818,4350.9,4350.1,1.5323]
[1756995166109,3.2078,4350.9,4350.1,1.5323]
[1756995166304,3.4818,4350.9,4350.1,1.5323]
[1756995167111,3.2078,4350.9,4350.1,1.5323]
[1756995167308,3.2078,4351.5,4350.7,3.2078]
[1756995167517,3.2078,4351.0,4350.2,1.5323]
[1756995168010,3.2078,4351.0,4350.2,1.8063]
[1756995168212,3.2078,4350.4,4349.7,1.5323]
[1756995168415,3.2078,4350.4,4349.2,3.2078]
[1756995168416,3.2078,4349.8,4349.2,3.2078]
[1756995168619,3.2078,4349.8,4349.1,1.5323]
[1756995169118,0.274,4349.7,4348.7,3.2078]
[1756995169322,0.274,4349.6,4348.8,1.5323]
[1756995170521,3.2078,4349.3,4348.7,3.4818]
[1756995170819,3.2078,4349.3,4348.7,4.7401]
[1756995171122,3.2078,4349.8,4349.1,1.5323]
[1756995171618,0.5712,4349.7,4348.7,3.2078]
[1756995172315,0.274,4349.9,4348.1,3.2078]
[1756995172316,3.2078,4348.8,4348.1,3.2078]
[1756995172520,0.274,4348.7,4348.1,3.2078]
[1756995172818,0.274,4348.7,4348.2,1.5323]
[1756995173018,0.274,4348.7,4348.4,1.5323]
[1756995173218,0.274,4348.7,4348.2,1.5323]
[1756995173519,3.2078,4348.8,4348.2,1.5323]
[1756995173718,0.5712,4348.6,4348.0,0.6314]
[1756995173920,0.5712,4348.6,4347.7,1.5323]
[1756995173921,3.2078,4348.3,4347.7,1.5323]
[1756995174115,0.274,4348.2,4347.7,1.5323]
[1756995174318,0.8452,4348.2,4347.7,1.5323]
[1756995174511,3.2078,4347.8,4347.1,1.5323]
[1756995174717,0.274,4347.7,4347.1,1.5323]
[1756995174919,0.274,4347.6,4347.1,1.5323]
[1756995175218,0.274,4347.6,4347.0,0.6314]
[1756995175722,0.274,4347.6,4347.1,1.5323]
[1756995175921,0.274,4347.6,4347.0,2.1637]
[1756995176622,3.2078,4347.3,4347.1,1.5323]
[1756995177228,3.2078,4347.3,4347.0,0.6314]
[1756995177723,3.2078,4347.3,4347.1,1.5323]
[1756995177924,3.2078,4347.3,4346.4,0.274]
[1756995178116,0.274,4347.2,4346.5,2.1637]
[1756995179322,3.2078,4347.3,4347.1,1.5323]
[1756995179518,0.274,4347.7,4347.1,1.5323]
[1756995179720,0.274,4347.7,4347.6,1.5323]
[1756995179927,3.2078,4348.0,4347.5,0.6314]
[1756995180118,0.274,4347.9,4347.6,1.5323]
[1756995180323,3.2078,4348.0,4347.6,1.5323]
[1756995180522,0.274,4347.9,4347.6,1.5323]
[1756995180824,3.2078,4349.1,4348.5,0.6314]
[1756995181128,0.686,4349.6,4348.5,0.6314]
[1756995181129,0.274,4349.3,4349.0,0.6314]
[1756995181332,0.274,4349.3,4349.1,1.5323]
[1756995181631,0.274,4349.3,4349.0,0.6314]
[1756995181824,0.274,4349.3,4349.1,1.5323]
[1756995182326,4.00893001,4349.2,4348.0,2.1637]
[1756995182523,3.2078,4348.2,4347.6,1.5323]
[1756995182721,0.274,4348.1,4347.6,1.5323]
[1756995182924,3.2078,4348.2,4348.1,1.5323]
[1756995183123,3.4818,4348.2,4348.1,1.5323]
[1756995183929,3.2078,4348.2,4348.1,1.5323]
[1756995184324,0.274,4348.3,4348.0,0.6314]
[1756995184531,3.2078,4349.3,4348.6,1.5323]
[1756995185631,0.273,4349.2,4348.6,1.5323]
[1756995186022,3.2078,4348.7,4348.0,0.6314]
[1756995186225,3.2078,4348.1,4347.5,0.6314]
[1756995186431,3.4808,4348.1,4347.6,1.5323]
[1756995187020,3.4808,4348.1,4347.5,0.6314]
[1756995187221,3.4808,4348.1,4347.6,1.5323]
[1756995187426,0.1149,4348.6,4347.5,0.6314]
[1756995187427,0.1149,4348.6,4348.0,2.1637]
[1756995187633,0.1149,4348.6,4348.0,0.6314]
[1756995187827,0.273,4348.5,4348.1,1.5323]
[1756995188334,3.2078,4348.3,4348.1,1.5323]
[1756995188730,0.273,4348.2,4348.1,1.5323]
[1756995189426,3.2078,4348.3,4348.1,1.5323]
[1756995189622,3.2078,4348.3,4347.5,0.6314]
[1756995189822,3.2078,4348.3,4347.5,2.1637]
[1756995189823,0.273,4348.2,4347.5,2.1637]
[1756995191931,0.503,4348.2,4347.5,2.1637]
[1756995192131,3.2078,4347.8,4347.5,0.6314]
[1756995192331,0.273,4347.7,4347.6,1.5725]
[1756995192733,3.2078,4347.8,4347.6,1.5725]
[1756995193332,0.273,4348.3,4348.1,1.5725]
[1756995193531,3.2078,4348.5,4348.1,1.5725]
[1756995193739,3.4808,4348.5,4348.1,1.5725]
[1756995193933,3.2078,4348.5,4348.1,1.8455]
[1756995194136,0.1149,4348.6,4348.1,1.8455]
[1756995194339,3.2078,4349.1,4349.0,0.6183]
[1756995194536,0.273,4349.5,4349.1,1.5725]
[1756995194737,0.273,4349.5,4349.0,0.6183]
[1756995194937,1.5395,4349.3,4348.3,4.7803]
[1756995195132,1.5395,4348.6,4348.3,1.5725]
[1756995195344,1.8125,4348.5,4348.3,1.5725]
[1756995195641,1.8125,4348.5,4348.1,1.5725]
[1756995195837,1.8125,4348.5,4348.0,0.6183]
[1756995196036,1.8125,4348.5,4348.1,1.5725]
[1756995196438,0.273,4348.5,4348.1,1.5725]
[1756995196635,1.5395,4348.4,4347.7,3.2078]
[1756995197435,1.5395,4348.4,4347.8,1.5725]
[1756995197838,3.2078,4348.2,4347.6,1.5725]
[1756995198044,3.2078,4348.2,4347.5,0.9044]
[1756995198045,0.273,4348.1,4347.5,0.9044]
[1756995198239,0.273,4348.1,4347.5,2.4769]
[1756995198445,0.273,4348.1,4347.5,2.2039]
[1756995198646,0.273,4348.1,4347.5,1.5725]
[1756995198839,0.273,4348.1,4347.2,3.2078]
[1756995198840,6.34020475,4348.0,4347.2,3.2078]
[1756995199040,6.11020475,4348.0,4347.2,3.2078]
[1756995199355,1.5395,4347.6,4347.0,1.5725]
[1756995199644,1.5395,4347.4,4347.0,1.5725]
[1756995200238,0.273,4347.5,4347.0,1.5725]
[1756995200443,1.5395,4347.4,4346.7,3.2078]
[1756995200645,3.2078,4347.0,4346.5,2.1908]
[1756995200852,1.5395,4346.8,4346.0,0.6183]
[1756995201147,3.2078,4346.4,4346.1,1.5725]
[1756995201342,6.11020475,4346.3,4345.5,1.5725]
[1756995201544,3.4808,4346.2,4345.6,1.5725]
[1756995201745,0.273,4346.1,4345.5,0.6183]
[1756995201947,0.273,4346.0,4345.5,0.6183]
[1756995202138,0.273,4346.0,4345.6,1.5725]
[1756995202342,1.8125,4346.0,4345.6,1.5725]
[1756995202652,7.31860249,4345.7,4345.0,5.3986]
[1756995202949,0.273,4345.6,4345.0,5.3986]
[1756995203246,3.2078,4345.7,4345.1,1.5725]
[1756995203448,0.273,4345.9,4345.5,0.6183]
[1756995204245,3.2078,4346.2,4345.6,1.5725]
[1756995204649,0.273,4346.1,4345.5,0.6183]
[1756995204954,4.38380249,4346.1,4345.5,2.1908]
[1756995205248,1.5395,4346.0,4345.0,5.3986]
[1756995206448,4.11080249,4345.6,4345.0,2.1908]
[1756995206650,7.31860249,4345.1,4344.5,0.6183]
[1756995206845,0.273,4345.0,4344.4,1.5725]
[1756995207552,0.273,4345.0,4344.5,0.6183]
[1756995207848,3.2078,4345.1,4344.5,0.6183]
[1756995208048,3.2078,4345.1,4344.6,1.5725]
[1756995208254,3.2078,4345.1,4344.5,0.6183]
[1756995208451,3.2078,4345.1,4344.6,1.5725]
[1756995208746,1.8125,4345.0,4344.6,1.5725]
[1756995208946,1.5395,4344.9,4344.6,1.5725]
[1756995209155,4.11080249,4344.9,4344.1,1.5725]
[1756995209339,4.7473,4344.6,4344.0,0.6183]
[1756995209544,0.273,4344.5,4344.0,0.6183]
[1756995209747,0.273,4344.5,4344.1,1.5725]
[1756995210047,3.2078,4344.6,4344.5,0.6183]
[1756995210252,3.2078,4345.3,4344.6,1.5725]
[1756995210554,3.4808,4345.3,4344.6,1.5725]
[1756995210950,3.4808,4345.3,4344.5,0.6183]
[1756995210951,0.273,4345.6,4344.7,3.2078]
[1756995211152,3.2078,4345.8,4344.8,1.5725]
[1756995211348,0.273,4345.9,4345.6,1.5725]
[1756995211748,3.2078,4346.6,4345.6,1.5725]
[1756995212150,0.273,4346.5,4345.6,1.5725]
[1756995212655,0.273,4346.5,4345.5,0.6183]
[1756995212656,3.2078,4346.1,4345.5,0.6183]
[1756995212850,8.85810249,4345.6,4345.0,0.6183]
[1756995213052,0.273,4345.5,4345.1,1.5725]
[1756995213348,1.8125,4345.5,4345.0,0.6183]
[1756995213553,1.8125,4345.5,4345.1,1.5725]
[1756995213749,1.8125,4345.5,4345.0,0.6183]
[1756995213943,4.11080249,4345.1,4344.6,1.5725]
[1756995214143,4.38380249,4345.1,4344.5,5.3986]
[1756995214552,3.2078,4345.6,4344.6,1.5725]
[1756995214851,3.2078,4345.6,4344.6,1.80265]
[1756995215057,3.2078,4345.6,4345.5,2.1908]
[1756995216653,3.2078,4345.6,4345.5,1.5725]
[1756995217045,3.2078,4345.6,4345.0,0.6183]
[1756995217046,4.7473,4345.6,4345.0,0.6183]
[1756995217249,2.135,4345.0,4344.0,3.8261]
[1756995217458,0.272,4344.9,4344.1,1.5725]
[1756995217756,0.272,4344.8,4344.1,1.5725]
[1756995218658,7.31860249,4345.1,4344.1,1.5725]
[1756995218857,0.272,4345.0,4344.1,1.5725]
[1756995219056,3.2078,4345.1,4344.2,0.23016999]
[1756995219252,3.2078,4345.1,4345.0,2.1908]
[1756995220546,3.2078,4345.1,4345.0,1.5725]
[1756995221755,3.2078,4345.1,4344.5,2.1908]
[1756995222156,4.11080249,4344.8,4344.1,0.272]
[1756995222358,0.272,4344.7,4344.1,1.4797]
[1756995222862,0.272,4344.8,4344.3,1.4797]
[1756995223159,3.2078,4345.1,4344.6,1.4797]
[1756995223850,3.2078,4345.1,4345.0,0.6164]
[1756995224047,3.2078,4345.1,4345.0,2.0961]
[1756995224253,3.2078,4345.1,4345.0,1.4797]
[1756995225365,3.2078,4345.1,4345.0,2.0961]
[1756995225560,7.59060249,4345.2,4344.6,1.4797]
[1756995225962,1.5683,4345.1,4344.2,1.4797]
[1756995226161,3.2078,4344.7,4344.1,4.91766999]
[1756995226362,1.5683,4344.5,4344.1,1.4797]
[1756995226556,1.5683,4344.3,4344.1,1.4797]
[1756995226858,3.2078,4344.2,4344.1,1.4797]
[1756995227055,3.2078,4344.2,4343.5,1.4797]
[1756995227256,1.5683,4343.5,4342.8,0.17500029]
[1756995227458,5.67910249,4343.3,4342.9,1.56817]
[1756995227657,5.67910249,4343.3,4342.9,0.08847]
[1756995227658,4.7761,4343.0,4342.9,0.08847]
[1756995227962,5.0481,4343.0,4342.9,0.08847]
[1756995229061,9.15890249,4343.0,4342.9,0.08847]
[1756995229562,9.76130249,4343.0,4342.9,0.08847]
[1756995229757,3.2078,4343.0,4342.9,1.56817]
[1756995229962,0.272,4343.3,4342.9,0.08847]
[1756995230152,3.2078,4343.5,4343.0,1.4797]
[1756995230356,0.272,4343.7,4343.1,1.4797]
[1756995230855,4.7761,4344.0,4343.1,1.4797]
[1756995231060,3.2078,4344.0,4343.1,1.4797]
[1756995231252,0.272,4344.0,4343.6,3.2078]
[1756995231458,0.272,4344.0,4343.7,1.4797]
[1756995231660,0.272,4343.9,4343.8,1.4797]
[1756995231963,0.272,4343.9,4343.6,3.2078]
[1756995232259,0.272,4343.9,4343.1,1.4797]
[1756995233364,1.5683,4343.5,4342.9,1.56817]
[1756995233565,0.272,4343.4,4342.9,1.56817]
[1756995233756,1.5683,4343.0,4342.9,0.08847]
[1756995233961,1.8403,4343.0,4342.9,0.08847]
[1756995234264,5.0481,4343.0,4342.9,0.08847]
[1756995234564,5.0481,4343.0,4341.4,3.2078]
[1756995234565,9.643,4343.0,4341.7,1.4797]
[1756995234765,3.2078,4342.0,4341.4,3.2078]
[1756995235067,1.5683,4341.8,4341.4,3.2078]
[1756995235566,1.5683,4341.8,4341.5,1.4797]
[1756995235763,0.272,4341.9,4341.4,3.2078]
[1756995235966,0.272,4341.9,4341.6,1.4797]
[1756995236161,0.272,4341.9,4341.5,1.4797]
[1756995236365,3.2078,4342.0,4341.5,1.4797]
[1756995236565,0.272,4341.9,4341.6,1.4797]
[1756995236870,1.5683,4341.8,4341.5,1.4797]
[1756995237067,1.5683,4341.8,4341.4,4.6875]
[1756995237264,0.272,4341.9,4341.5,1.4797]
[1756995237571,0.272,4341.9,4341.5,0.6164]
[1756995237867,3.2078,4342.0,4341.6,1.4797]
[1756995238169,3.2078,4342.0,4341.5,0.6164]
[1756995238472,1.8403,4341.9,4341.0,2.0961]
[1756995238669,3.2078,4341.5,4341.0,2.0961]
[1756995238875,1.8403,4341.4,4341.1,1.4797]
[1756995239065,1.5683,4341.3,4341.1,1.4797]
[1756995239267,0.272,4341.4,4341.1,1.4797]
[1756995239465,3.2078,4341.5,4340.7,1.4797]
[1756995239664,3.2078,4341.5,4340.7,1.71005999]
[1756995239973,0.272,4341.4,4340.7,1.4797]
[1756995240174,3.2078,4341.5,4340.7,1.4797]
[1756995240474,0.272,4341.4,4340.7,1.4797]
[1756995240768,0.272,4341.4,4341.1,1.4797]
[1756995240969,0.272,4341.4,4341.0,0.6164]
[1756995241269,0.272,4341.4,4341.1,1.4797]
[1756995241566,0.272,4341.4,4340.8,3.2078]
[1756995241567,1.5683,4341.4,4340.8,3.2078]
[1756995241768,3.2078,4341.5,4340.9,1.4797]
[1756995241970,3.2078,4342.0,4341.1,1.4797]
[1756995242164,0.271,4341.9,4341.1,1.4797]
[1756995242565,3.2078,4341.3,4341.1,1.4797]
[1756995242762,3.4788,4341.3,4341.1,1.4797]
[1756995243366,3.4788,4341.3,4340.8,3.2078]
[1756995243768,3.4788,4341.3,4340.8,1.4797]
[1756995243974,3.4788,4341.3,4340.3,3.4788]
[1756995243975,1.5683,4341.2,4340.3,4.6875]
[1756995244471,3.4788,4341.3,4340.6,1.4797]
[1756995244676,5.67910249,4341.2,4340.6,1.4797]
[1756995245369,1.5683,4341.2,4340.6,1.4797]
[1756995245570,3.4788,4341.3,4340.6,1.4797]
[1756995246271,3.2078,4341.3,4340.6,1.4797]
[1756995246473,0.271,4341.2,4341.1,1.4797]
[1756995246682,3.2078,4342.0,4341.1,1.4797]
[1756995246977,0.271,4341.9,4341.1,1.4797]
[1756995247976,4.7761,4341.4,4341.1,1.4797]
[1756995248166,1.5683,4341.2,4340.8,1.4797]
[1756995248372,3.2078,4341.4,4340.8,1.4797]
[1756995248570,0.271,4341.3,4340.9,1.4797]
[1756995248876,1.8393,4341.3,4341.0,1.4797]
[1756995249072,1.8393,4341.3,4340.6,1.4797]
[1756995249273,3.2078,4341.4,4340.6,1.4797]
[1756995249572,3.2078,4340.7,4340.6,1.4797]
[1756995249775,7.58960249,4340.7,4340.0,2.0961]
[1756995249975,3.2078,4340.2,4339.5,0.6164]
[1756995250280,1.8393,4340.1,4339.5,2.0961]
[1756995250669,0.271,4340.0,4339.6,1.4797]
[1756995250873,0.271,4340.0,4339.5,0.6164]
[1756995251073,0.271,4339.9,4339.5,0.6164]
[1756995251266,3.2078,4340.2,4339.6,1.4797]
[1756995251576,0.271,4341.1,4340.5,0.6164]
[1756995251771,0.271,4341.1,4340.6,1.4797]
[1756995252077,0.271,4341.0,4340.7,1.4797]
[1756995252276,0.271,4341.0,4340.5,0.6164]
[1756995252277,0.271,4341.0,4340.8,1.437]
[1756995252468,7.31860249,4341.7,4340.6,1.437]
[1756995252670,0.271,4341.6,4340.6,1.437]
[1756995252868,7.31860249,4341.7,4340.6,1.437]
[1756995252869,1.7839,4341.5,4340.6,1.437]
[1756995253074,0.271,4341.4,4340.6,1.437]
[1756995253269,3.2078,4341.7,4340.6,1.437]
[1756995253480,0.271,4341.6,4341.1,1.437]
[1756995253678,0.271,4341.6,4341.0,0.5759]
[1756995253974,3.2078,4341.7,4341.6,1.437]
[1756995255472,7.58960249,4341.7,4341.0,2.0129]
[1756995255672,1.5129,4341.6,4340.4,3.4788]
[1756995255872,0.271,4341.5,4340.6,1.437]
[1756995256272,3.2078,4340.9,4340.4,0.271]
[1756995256866,3.2078,4340.9,4340.6,1.437]
[1756995257271,1.5129,4340.8,4340.6,1.437]
[1756995257472,0.271,4340.7,4340.1,1.437]
[1756995257670,5.62370249,4340.3,4339.6,1.437]
[1756995257886,5.62370249,4340.3,4339.4,3.2078]
[1756995257887,0.271,4340.2,4339.4,3.2078]
[1756995258482,3.2078,4339.9,4339.2,1.437]
[1756995258681,0.271,4339.8,4339.2,1.437]
[1756995260273,4.11080249,4339.3,4338.6,1.708]
[1756995260474,3.2078,4338.9,4338.6,1.437]
[1756995260876,0.271,4339.3,4338.6,1.437]
[1756995261284,0.271,4339.3,4338.7,1.437]
[1756995261483,3.2078,4339.4,4338.7,1.437]
[1756995261680,0.271,4339.3,4338.7,1.437]
[1756995261881,0.271,4339.3,4339.0,0.5759]
[1756995262184,0.271,4339.3,4339.1,1.437]
[1756995262584,0.271,4339.3,4338.6,3.2078]
[1756995262585,0.271,4339.2,4339.0,0.5759]
[1756995262790,0.271,4339.2,4339.1,1.437]
[1756995262992,0.271,4339.5,4339.1,1.437]
[1756995263289,1.5129,4339.5,4338.7,1.437]
[1756995263684,3.2078,4339.4,4338.7,1.437]
[1756995263987,0.271,4339.3,4338.7,1.437]
[1756995265496,3.2078,4339.4,4338.7,1.437]
[1756995265683,0.271,4339.3,4338.7,1.437]
[1756995266685,3.4778,4339.4,4338.7,1.437]
[1756995266885,3.2078,4339.4,4339.0,0.5759]
[1756995267384,3.2078,4340.5,4340.0,0.5759]
[1756995267593,3.2078,4341.0,4340.3,1.437]
[1756995268100,1.5129,4340.9,4340.2,3.2078]
[1756995268386,1.5129,4340.9,4339.3,1.437]
[1756995268387,1.5129,4340.4,4339.3,1.437]
[1756995268593,1.5129,4339.9,4339.3,1.437]
[1756995268785,1.5129,4339.7,4339.1,1.437]
[1756995268984,0.27,4339.8,4339.1,1.437]
[1756995269585,1.7829,4339.7,4339.1,1.437]
[1756995270288,1.5129,4339.4,4339.1,1.437]
[1756995270493,1.7829,4339.4,4338.6,1.437]
[1756995270691,3.2078,4339.5,4338.6,1.437]
[1756995270993,3.4778,4339.5,4339.0,0.5759]
[1756995271291,3.4778,4339.5,4339.1,1.437]
[1756995271487,1.5129,4339.4,4338.7,0.27]
[1756995271687,1.5129,4339.4,4338.8,1.437]
[1756995272888,3.2078,4339.0,4338.8,1.437]
[1756995273194,3.4778,4339.0,4338.8,1.437]
[1756995273591,1.5129,4338.9,4338.2,1.437]
[1756995273983,1.5129,4338.4,4338.3,0.32151282]
[1756995274188,1.7829,4338.4,4338.3,0.32151282]
[1756995274390,1.7829,4338.4,4337.7,1.437]
[1756995274588,1.7829,4338.4,4337.8,0.32151074]
[1756995275095,1.7829,4338.4,4337.9,0.321494]
[1756995275291,0.27,4338.4,4338.0,0.321494]
[1756995275492,1.5129,4338.3,4338.1,0.321494]
[1756995275792,1.5129,4338.3,4338.2,0.321494]
[1756995276089,5.5129,4338.3,4337.2,1.437]
[1756995276298,3.2078,4338.0,4337.2,1.437]
[1756995276593,0.27,4337.9,4337.2,1.437]
[1756995277090,0.27,4337.8,4337.2,1.437]
[1756995277289,0.27,4337.9,4337.2,1.437]
[1756995277900,3.2078,4338.0,4337.5,3.7837]
[1756995278093,3.2078,4338.0,4337.6,1.437]
[1756995278294,0.27,4338.2,4338.1,1.437]
[1756995278789,0.27,4338.5,4338.1,1.437]
[1756995278996,3.2078,4338.9,4338.1,1.437]
[1756995279196,0.27,4338.5,4338.0,0.5759]